bitfinex-derivatives/quotes_SOLF0:USTF0_20250109
["timestamp","ask_amount","ask_price","bid_price","bid_amount"]
[1736454339902,2.87947,183.95,183.85,2.7198]
[1736454340197,2.87947,183.95,183.82,39.97897157]
[1736454341045,2.87947,183.95,183.81,3.283]
[1736454341429,39.97897157,183.93,183.81,3.283]
[1736454341619,2.87947,183.95,183.81,3.283]
[1736454342230,39.97897157,183.93,183.81,3.283]
[1736454342427,39.97897157,183.93,183.81,1.641]
[1736454342720,2.7191,183.92,183.84,2.72]
[1736454343224,39.97897157,183.93,183.81,1.641]
[1736454343923,8.43804507,183.92,183.81,1.641]
[1736454344123,2.87947,183.95,183.82,0.9996165]
[1736454344318,2.87947,183.95,183.84,39.97897157]
[1736454344543,2.87947,183.95,183.85,1.5746]
[1736454345323,11.31967229,183.95,183.94,2.7186]
[1736454345630,11.31967229,183.95,183.87,39.97897157]
[1736454346033,11.31967229,183.95,183.94,2.7186]
[1736454346231,2.87947,183.95,183.94,2.7186]
[1736454347332,2.87947,183.95,183.85,1.5746]
[1736454347715,5.59807,183.95,183.88,2.7194]
[1736454347938,2.87947,183.95,183.85,1.5746]
[1736454349001,2.87947,183.95,183.89,2.7192]
[1736454349201,2.87947,183.95,183.85,1.5746]
[1736454349602,2.87947,183.95,183.88,2.7195]
[1736454349807,2.87947,183.95,183.85,1.5746]
[1736454350198,42.85844157,183.95,183.81,1.641]
[1736454350606,42.85844157,183.95,183.81,3.2244]
[1736454350806,1.6187,183.94,183.86,2.7198]
[1736454351201,1.6187,183.94,183.87,2.7195]
[1736454351609,1.6187,183.94,183.81,3.2244]
[1736454351809,1.6187,183.94,183.89,2.7193]
[1736454352011,1.6187,183.94,183.81,43.20337157]
[1736454352308,5.59797,183.95,183.81,43.20337157]
[1736454352513,42.69717157,183.98,183.82,0.99942945]
[1736454352706,39.97897157,183.98,183.82,0.99942945]
[1736454352908,39.97897157,183.98,183.81,43.20337157]
[1736454353106,39.97897157,183.98,183.82,0.99951497]
[1736454353411,3.2665,183.99,183.84,39.97897157]
[1736454353607,2.7183,183.97,183.9,2.7191]
[1736454354310,3.2665,183.99,183.84,39.97897157]
[1736454354506,39.97897157,183.98,183.84,39.97897157]
[1736454355121,2.7183,183.97,183.91,2.7191]
[1736454355511,39.97897157,183.98,183.91,2.7191]
[1736454355713,2.7184,183.96,183.91,2.7191]
[1736454355911,2.7184,183.96,183.92,2.7189]
[1736454357308,3.2665,183.99,183.81,43.20337157]
[1736454357309,39.97897157,183.95,183.81,43.20337157]
[1736454357614,39.97897157,183.95,183.81,3.2244]
[1736454358811,39.97897157,183.92,183.8,1.6085]
[1736454359016,39.97897157,183.89,183.76,1.6455]
[1736454359210,2.7201,183.84,183.76,1.6455]
[1736454359509,39.97897157,183.86,183.7,1.5263]
[1736454359716,39.97897157,183.83,183.7,1.5263]
[1736454359910,39.97897157,183.8,183.7,1.5263]
[1736454360110,39.97897157,183.8,183.68,3.191]
[1736454360316,39.97897157,183.77,183.64,1.5263]
[1736454360817,2.7214,183.76,183.69,2.7223]
[1736454361313,1.5554,183.78,183.64,1.5263]
[1736454361517,39.97897157,183.77,183.64,1.5263]
[1736454361715,1.5554,183.78,183.64,1.5263]
[1736454362012,1.538,183.79,183.66,39.97897157]
[1736454362313,4.7168,183.86,183.72,39.97897157]
[1736454362708,4.7168,183.86,183.73,1.6391]
[1736454362908,39.97897157,183.84,183.69,39.97897157]
[1736454363614,39.97897157,183.84,183.7,1.5087]
[1736454363817,4.7168,183.86,183.72,39.97897157]
[1736454364015,2.7203,183.84,183.76,2.7212]
[1736454364211,4.7168,183.86,183.76,2.7212]
[1736454364515,4.7168,183.86,183.7,1.5087]
[1736454364709,39.97897157,183.81,183.7,1.5087]
[1736454365210,39.97897157,183.84,183.7,1.5087]
[1736454365716,2.7205,183.82,183.76,2.7212]
[1736454366113,39.97897157,183.84,183.7,1.5087]
[1736454366313,4.7168,183.86,183.72,39.97897157]
[1736454366618,2.7201,183.85,183.77,2.721]
[1736454366812,4.7168,183.86,183.72,39.97897157]
[1736454367216,3.1437,183.86,183.72,39.97897157]
[1736454367514,39.97897157,183.9,183.75,39.97897157]
[1736454367818,4.6415,183.92,183.85,2.7199]
[1736454368005,4.6415,183.92,183.76,1.641]
[1736454368006,1.613,183.92,183.81,39.97897157]
[1736454368411,1.613,183.92,183.87,2.7196]
[1736454368614,9.9485,183.99,183.81,39.97897157]
[1736454368816,1.5531,183.98,183.81,39.97897157]
[1736454369414,1.5531,183.98,183.84,39.97897157]
[1736454370136,2.7184,183.96,183.89,2.7192]
[1736454370330,2.7184,183.96,183.84,39.97897157]
[1736454370581,1.5531,183.98,183.84,39.97897157]
[1736454371318,2.7184,183.96,183.9,2.7191]
[1736454371521,1.5531,183.98,183.81,39.97897157]
[1736454371917,2.7184,183.96,183.89,2.7192]
[1736454372520,39.97897157,183.96,183.87,2.7196]
[1736454372821,39.97897157,183.96,183.79,1.5382]
[1736454373023,188.792,184.0,183.85,39.97897157]
[1736454373222,188.792,184.0,183.95,2.7184]
[1736454373524,188.792,184.0,183.89,39.97897157]
[1736454373823,188.792,184.0,183.9,1.5306]
[1736454375525,188.792,184.0,183.96,2.7182]
[1736454375721,188.792,184.0,183.9,1.5306]
[1736454375919,228.77097157,184.0,183.9,1.5306]
[1736454376118,188.792,184.0,183.9,1.5306]
[1736454376919,39.97897157,183.97,183.9,1.5306]
[1736454377228,2.7184,183.96,183.87,4.2399]
[1736454377525,228.77097157,184.0,183.87,1.5202]
[1736454377922,188.792,184.0,183.87,1.5202]
[1736454378130,228.77097157,184.0,183.87,1.5202]
[1736454378322,39.97897157,183.97,183.86,1.6295]
[1736454378627,1.4954,183.96,183.86,1.6295]
[1736454378819,1.4954,183.96,183.9,2.7192]
[1736454379819,1.4954,183.96,183.89,2.7194]
[1736454380921,4.2138,183.96,183.89,2.7194]
[1736454381626,2.7179,183.99,183.93,2.7187]
[1736454382027,188.792,184.0,183.86,41.60847157]
[1736454382327,2.7184,183.96,183.86,41.60847157]
[1736454382827,2.7182,183.97,183.9,2.7191]
[1736454383227,2.7185,183.95,183.9,2.7191]
[1736454383427,24.53088841,183.96,183.84,1.5911]
[1736454383825,2.7191,183.92,183.84,1.5911]
[1736454384028,2.7191,183.92,183.85,2.7198]
[1736454384328,2.7187,183.94,183.84,1.5911]
[1736454384631,24.53088841,183.96,183.84,1.5911]
[1736454384827,24.53088841,183.93,183.8,1.5068]
[1736454385026,24.53088841,183.9,183.76,1.5562]
[1736454385525,24.53088841,183.87,183.76,1.5562]
[1736454385730,24.53088841,183.84,183.69,24.53088841]
[1736454386028,24.53088841,183.81,183.68,3.0082]
[1736454386227,1.6324,183.8,183.68,3.0082]
[1736454386626,1.6324,183.8,183.69,2.7223]
[1736454386830,1.6324,183.8,183.68,3.0082]
[1736454387129,1.6324,183.8,183.69,24.53088841]
[1736454387324,1.6324,183.8,183.69,39.92591193]
[1736454387728,1.6038,183.83,183.69,39.92591193]
[1736454387729,4.3242,183.83,183.69,39.92591193]
[1736454387928,39.92591193,183.88,183.72,39.92591193]
[1736454388331,39.92591193,183.88,183.75,39.92591193]
[1736454388832,2.7197,183.87,183.79,2.7208]
[1736454389025,6.82,183.9,183.75,39.92591193]
[1736454390031,2.7197,183.87,183.75,39.92591193]
[1736454390429,39.92591193,183.88,183.72,39.92591193]
[1736454390830,39.92591193,183.85,183.7,6.8]
[1736454391029,39.92591193,183.82,183.68,3.0082]
[1736454391230,2.7213,183.77,183.7,2.7221]
[1736454391536,2.7213,183.77,183.68,3.0082]
[1736454391735,39.92591193,183.82,183.68,3.0082]
[1736454392334,6.8,183.81,183.68,3.0082]
[1736454392835,6.8,183.81,183.71,2.722]
[1736454393337,2.7211,183.78,183.72,2.7219]
[1736454393738,6.8,183.81,183.72,2.7219]
[1736454394041,2.721,183.79,183.72,2.7219]
[1736454394243,6.8,183.81,183.72,2.7219]
[1736454394741,2.7212,183.77,183.73,2.7217]
[1736454395043,2.7212,183.77,183.68,3.0082]
[1736454395235,2.7212,183.77,183.72,2.7218]
[1736454396438,2.721,183.78,183.72,2.7218]
[1736454396637,2.721,183.78,183.73,2.7217]
[1736454397738,2.7212,183.77,183.73,2.7217]
[1736454398039,39.92591193,183.76,183.61,3.0412]
[1736454398238,1.5557,183.75,183.61,3.0412]
[1736454398640,2.7219,183.73,183.61,3.0412]
[1736454398838,1.5789,183.74,183.61,3.0412]
[1736454399038,2.7221,183.71,183.63,2.7232]
[1736454399238,39.92591193,183.7,183.57,1.6234]
[1736454399535,2.7231,183.64,183.58,2.7238]
[1736454399730,39.92591193,183.64,183.53,1.6331]
[1736454400035,1.6317,183.63,183.48,5.82488153]
[1736454400240,39.92591193,183.58,183.46,4.91]
[1736454400440,6.8,183.57,183.46,4.91]
[1736454400742,6.8,183.57,183.42,39.92591193]
[1736454401039,1.5411,183.56,183.43,1.00147588]
[1736454401238,4.2655,183.56,183.48,2.7253]
[1736454401850,6.8,183.57,183.45,39.92591193]
[1736454402234,1.6317,183.63,183.45,6.8]
[1736454402440,1.6317,183.63,183.51,39.92591193]
[1736454402639,1.5411,183.66,183.54,39.92591193]
[1736454402839,39.92591193,183.7,183.54,39.92591193]
[1736454403245,3.183,183.72,183.57,39.92591193]
[1736454403844,2.7225,183.68,183.62,2.7233]
[1736454404043,39.92591193,183.7,183.54,46.74591193]
[1736454404643,39.92591193,183.67,183.54,46.74591193]
[1736454405235,2.7231,183.64,183.53,1.5017]
[1736454405942,2.7225,183.68,183.54,39.92591193]
[1736454406137,39.92591193,183.7,183.54,39.92591193]
[1736454406544,3.183,183.72,183.57,39.92591193]
[1736454407144,3.183,183.72,183.64,2.7231]
[1736454408246,3.183,183.72,183.67,2.7226]
[1736454408444,39.92591193,183.76,183.67,2.7226]
[1736454408649,41.47921193,183.76,183.67,2.7226]
[1736454409548,1.5533,183.76,183.63,39.92591193]
[1736454410449,41.47921193,183.76,183.61,1.5911]
[1736454410944,2.7218,183.73,183.67,2.7226]
[1736454411351,41.47921193,183.76,183.62,1.6275]
[1736454411542,2.7223,183.7,183.63,2.7232]
[1736454411742,39.92591193,183.73,183.62,1.6275]
[1736454412346,1.5533,183.76,183.63,39.92591193]
[1736454412643,3.1005,183.79,183.66,39.92591193]
[1736454412844,39.92591193,183.85,183.69,39.92591193]
[1736454413050,2.7204,183.83,183.72,39.92591193]
[1736454413249,39.92591193,183.88,183.72,39.92591193]
[1736454413439,4.6718,183.91,183.78,39.92591193]
[1736454413646,3.121,183.91,183.78,39.92591193]
[1736454413845,41.47671193,183.97,183.81,39.92591193]
[1736454414059,2.7186,183.95,183.81,39.92591193]
[1736454414251,1.6006,183.98,183.84,39.92591193]
[1736454414654,2.7185,183.95,183.89,2.7193]
[1736454414846,1.6006,183.98,183.84,39.92591193]
[1736454415654,39.92591193,183.97,183.82,6.8]
[1736454416651,1.6006,183.98,183.84,39.92591193]
[1736454417053,1.6216,183.99,183.87,39.92591193]
[1736454417253,1.6216,183.99,183.88,1.5279]
[1736454417849,4.3395,183.99,183.9,2.7191]
[1736454418049,1.6216,183.99,183.88,1.5279]
[1736454418952,1.6216,183.99,183.85,3.1343]
[1736454419151,1.6216,183.99,183.85,4.702]
[1736454419750,2.7182,183.97,183.9,2.7192]
[1736454420157,1.6216,183.99,183.85,4.702]
[1736454420455,41.47671193,184.03,183.88,39.92591193]
[1736454420760,2.7181,183.98,183.91,2.7189]
[1736454420953,41.47671193,184.03,183.85,44.62791193]
[1736454421351,2.7179,184.0,183.92,2.7188]
[1736454421951,2.7179,183.99,183.92,2.7188]
[1736454422152,41.47671193,184.03,183.85,44.62791193]
[1736454422657,2.7178,184.0,183.9,2.7192]
[1736454422854,41.47671193,184.03,183.85,44.62791193]
[1736454423153,2.7185,183.95,183.89,2.7194]
[1736454423359,39.92591193,184.0,183.85,44.62791193]
[1736454423553,41.47671193,184.03,183.85,44.62791193]
[1736454423752,2.7178,184.0,183.85,44.62791193]
[1736454424156,44.19411193,184.03,183.96,2.7183]
[1736454424371,1.5508,184.03,183.96,2.7183]
[1736454424553,1.6224,184.04,183.88,46.72591193]
[1736454424748,2.7173,184.03,183.96,2.7183]
[1736454425159,39.92591193,184.03,183.88,46.72591193]
[1736454425458,39.92591193,184.03,183.94,2.7185]
[1736454425655,39.92591193,184.03,183.88,46.72591193]
[1736454426351,1.6224,184.04,183.88,46.72591193]
[1736454426558,1.6224,184.04,183.91,39.92591193]
[1736454426861,39.92591193,184.09,183.94,39.92591193]
[1736454427066,43.12421193,184.12,183.97,39.92591193]
[1736454427261,2.7164,184.1,184.03,2.7172]
[1736454427455,39.92591193,184.09,183.95,4.6349]
[1736454427663,39.92591193,184.06,183.95,4.6349]
[1736454427858,42.64291193,184.06,183.99,2.7179]
[1736454428161,39.92591193,184.09,183.95,4.6349]
[1736454428361,2.7167,184.08,184.02,2.7173]
[1736454428558,43.12421193,184.12,184.02,2.7173]
[1736454428755,39.92591193,184.09,183.95,4.6349]
[1736454428959,43.12421193,184.12,183.96,0.99875471]
[1736454429160,43.12421193,184.12,183.97,39.92591193]
[1736454429565,43.12421193,184.12,183.95,4.6349]
[1736454429867,43.12421193,184.12,183.97,39.92591193]
[1736454430265,2.7161,184.11,183.97,39.92591193]
[1736454430466,2.7161,184.11,183.97,46.72591193]
[1736454430864,2.7164,184.1,183.97,46.72591193]
[1736454431263,43.12421193,184.12,183.96,0.99868625]
[1736454431459,2.7166,184.08,184.02,2.7175]
[1736454431660,43.12421193,184.12,183.97,39.92591193]
[1736454431964,6.8,184.14,184.07,2.7166]
[1736454432465,39.92591193,184.15,184.09,2.7164]
[1736454432666,39.92591193,184.15,184.0,39.92591193]
[1736454433169,2.7157,184.14,184.0,39.92591193]
[1736454433569,39.92591193,184.15,184.0,39.92591193]
[1736454434164,2.7161,184.12,184.04,2.7171]
[1736454434368,39.92591193,184.12,183.97,39.92591193]
[1736454434573,4.7127,184.17,183.96,0.99868625]
[1736454434574,39.92591193,184.09,183.96,0.99868625]
[1736454435061,6.8,184.11,183.96,0.99868625]
[1736454435262,2.7164,184.09,184.03,2.7173]
[1736454435762,6.8,184.11,184.06,2.7168]
[1736454435961,6.8,184.11,183.96,40.92459818]
[1736454436162,46.72591193,184.11,183.96,0.99868625]
[1736454436361,6.8,184.11,183.96,0.99868625]
[1736454436563,2.7173,184.03,183.97,2.7182]
[1736454436968,39.92591193,184.05,183.97,2.7182]
[1736454437275,2.7173,184.03,183.97,2.7182]
[1736454437970,39.92591193,184.08,183.96,0.99868625]
[1736454438171,2.717,184.05,183.96,0.99868625]
[1736454438372,39.92591193,184.05,183.96,0.99868625]
[1736454438567,2.7172,184.05,183.99,2.7178]
[1736454438772,1.6119,184.07,183.95,4.6349]
[1736454438970,1.6119,184.07,183.93,39.92591193]
[1736454439178,2.7171,184.05,183.93,39.92591193]
[1736454439379,3.1098,184.07,183.92,24.50725237]
[1736454439570,3.1098,184.07,183.95,24.50725237]
[1736454439876,31.30725237,184.11,183.95,24.50725237]
[1736454440274,31.30725237,184.11,183.88,4.6585]
[1736454440477,24.50725237,184.14,183.98,24.50725237]
[1736454440678,24.50725237,184.14,183.99,4.6704]
[1736454442289,24.50725237,184.14,184.0,24.50725237]
[1736454442775,24.50725237,184.14,183.99,4.6704]
[1736454443179,2.7165,184.09,184.03,2.7173]
[1736454443484,24.50725237,184.14,183.99,4.6704]
[1736454444081,2.7164,184.1,183.99,4.6704]
[1736454444580,2.7164,184.1,184.04,2.717]
[1736454444777,24.50725237,184.11,183.99,4.6704]
[1736454444985,24.50725237,184.11,183.99,1.5549]
[1736454445284,2.7167,184.08,184.02,2.7173]
[1736454445480,24.50725237,184.11,184.02,2.7173]
[1736454445881,2.7167,184.08,184.02,2.7173]
[1736454446286,2.7167,184.08,183.99,1.5549]
[1736454446584,2.7167,184.08,184.03,2.7173]
[1736454447981,2.7167,184.07,184.03,2.7173]
[1736454448783,24.50725237,184.08,183.93,24.50725237]
[1736454448983,1.6153,184.06,183.94,0.99888863]
[1736454449280,1.6153,184.06,183.93,24.50725237]
[1736454449486,2.717,184.05,184.0,2.7176]
[1736454449687,2.717,184.05,183.93,24.50725237]
[1736454449889,1.6153,184.06,183.93,24.50725237]
[1736454450087,1.6153,184.06,183.94,0.99894552]
[1736454450387,1.6153,184.06,183.93,24.50725237]
[1736454450689,1.6153,184.06,183.92,1.572]
[1736454451188,2.7173,184.03,183.98,2.7179]
[1736454451783,24.50725237,183.99,183.89,1.08760672]
[1736454451981,24.50725237,183.96,183.84,1.5227]
[1736454452288,24.50725237,183.96,183.88,2.7194]
[1736454452289,3.215,183.95,183.88,2.7194]
[1736454452489,3.215,183.95,183.84,1.5227]
[1736454452886,24.50725237,183.93,183.79,1.5196]
[1736454453087,24.50725237,183.93,183.8,0.99966441]
[1736454453384,24.50725237,183.93,183.79,1.5196]
[1736454453587,27.72225237,183.95,183.79,1.5196]
[1736454454526,24.50725237,183.92,183.77,1.5558]
[1736454454684,24.50725237,183.89,183.77,1.5558]
[1736454454889,1.6226,183.88,183.77,1.5558]
[1736454455785,24.50725237,183.86,183.73,3.2302]
[1736454456084,24.50725237,183.83,183.72,5.61323315]
[1736454456286,24.50725237,183.8,183.65,3.2213]
[1736454456488,1.5442,183.79,183.66,1.00014327]
[1736454456985,24.50725237,183.77,183.65,3.2213]
[1736454457486,24.50725237,183.77,183.61,24.50725237]
[1736454457680,24.50725237,183.77,183.62,1.00060507]
[1736454458082,24.50725237,183.77,183.61,27.70265237]
[1736454458592,24.50725237,183.74,183.61,3.1954]
[1736454458979,27.22885237,183.74,183.65,2.7228]
[1736454459688,24.50725237,183.74,183.61,3.1954]
[1736454460091,24.50725237,183.78,183.61,27.70265237]
[1736454460384,24.50725237,183.78,183.62,1.00061197]
[1736454461085,27.22825237,183.78,183.7,2.722]
[1736454461388,24.50725237,183.78,183.61,27.70265237]
[1736454461589,24.50725237,183.74,183.66,2.7227]
[1736454461783,24.50725237,183.74,183.61,3.1954]
[1736454462189,24.50725237,183.74,183.68,2.7225]
[1736454462589,26.03715237,183.74,183.61,3.1954]
[1736454462789,28.75875237,183.74,183.64,2.7229]
[1736454463087,26.03715237,183.74,183.61,3.1954]
[1736454463988,28.75885237,183.74,183.66,2.7228]
[1736454464290,24.50725237,183.71,183.55,24.50725237]
[1736454464498,1.6225,183.7,183.56,1.00069991]
[1736454465886,1.6225,183.7,183.58,24.50725237]
[1736454466091,1.6225,183.7,183.59,1.00069991]
[1736454466492,1.5482,183.73,183.58,24.50725237]
[1736454466685,1.5482,183.73,183.61,24.50725237]
[1736454466887,1.5866,183.77,183.64,24.50725237]
[1736454467186,1.5866,183.77,183.67,24.50725237]
[1736454467392,9.9088,183.83,183.74,2.7215]
[1736454467697,1.5866,183.82,183.74,2.7215]
[1736454468084,1.5866,183.82,183.75,2.7214]
[1736454468497,2.7206,183.81,183.67,24.50725237]
[1736454468810,24.50725237,183.81,183.67,24.50725237]
[1736454468985,2.7207,183.8,183.67,24.50725237]
[1736454469190,2.7207,183.8,183.73,2.7216]
[1736454469898,2.7209,183.79,183.72,2.7218]
[1736454470089,1.5866,183.82,183.67,24.50725237]
[1736454470289,1.5866,183.82,183.7,24.50725237]
[1736454470991,3.1288,183.83,183.7,24.50725237]
[1736454470992,24.50725237,183.87,183.7,24.50725237]
[1736454471296,24.50725237,183.87,183.73,24.50725237]
[1736454471297,1.5243,183.86,183.73,24.50725237]
[1736454471694,1.5243,183.86,183.74,1.6528]
[1736454471896,1.5243,183.86,183.74,3.1481]
[1736454472092,24.50725237,183.9,183.74,3.1481]
[1736454472900,24.50725237,183.87,183.74,3.1481]
[1736454474397,2.7201,183.85,183.79,2.7208]
[1736454474596,24.50725237,183.87,183.79,2.7208]
[1736454474791,24.50725237,183.87,183.74,3.1481]
[1736454474792,24.50725237,183.9,183.75,24.50725237]
[1736454475096,3.0513,183.94,183.81,24.50725237]
[1736454475492,5.7701,183.94,183.87,2.7196]
[1736454476002,5.7701,183.94,183.81,24.50725237]
[1736454476003,3.0513,183.94,183.9,2.7192]
[1736454476191,1.4963,183.94,183.9,2.7192]
[1736454477897,4.2149,183.94,183.88,2.7195]
[1736454478295,4.2149,183.94,183.82,1.5945]
[1736454478493,4.2149,183.94,183.89,2.7193]
[1736454479904,1.4963,183.94,183.9,2.7191]
[1736454480104,1.4963,183.94,183.82,1.5945]
[1736454480606,1.4963,183.94,183.92,2.7189]
[1736454480807,84.88,184.08,183.87,24.50725237]
[1736454481007,8.3879,184.04,183.88,1.4996]
[1736454481206,1.6079,184.04,183.9,24.50725237]
[1736454481401,1.6079,184.04,183.91,1.6355]
[1736454481599,24.50725237,184.11,183.93,24.50725237]
[1736454481801,2.7167,184.08,183.96,24.50725237]
[1736454482005,1.6079,184.1,183.96,24.50725237]
[1736454482810,4.3243,184.1,184.0,2.7177]
[1736454483010,4.3243,184.1,183.96,24.50725237]
[1736454483212,1.6079,184.1,183.96,24.50725237]
[1736454484810,24.50725237,184.08,183.93,24.50725237]
[1736454485916,2.7169,184.07,183.93,24.50725237]
[1736454486109,2.7169,184.07,183.94,0.9988241]
[1736454486508,2.7169,184.07,183.95,1.5324]
[1736454486709,1.6079,184.1,184.04,2.7171]
[1736454486911,6.78,184.19,183.99,24.50725237]
[1736454487106,24.50725237,184.17,184.02,24.50725237]
[1736454487406,2.7156,184.15,184.02,24.50725237]
[1736454487609,24.50725237,184.17,184.02,24.50725237]
[1736454488212,2.7152,184.17,184.07,2.7167]
[1736454488412,4.7595,184.19,184.05,24.50725237]
[1736454488611,4.7595,184.19,184.06,1.6033]
[1736454489014,24.50725237,184.11,184.0,3.1283]
[1736454489214,24.50725237,184.08,183.93,24.50725237]
[1736454489416,24.50725237,184.08,183.94,2.57657162]
[1736454489609,24.50725237,184.08,183.95,0.99877162]
[1736454489817,1.5579,184.09,183.96,25.50599184]
[1736454490016,1.5579,184.09,183.97,0.99873947]
[1736454490517,24.50725237,184.14,183.99,24.50725237]
[1736454490718,6.76,184.15,184.02,24.50725237]
[1736454490923,2.7158,184.14,184.06,2.7167]
[1736454491221,24.50725237,184.14,184.03,3.1611]
[1736454491422,2.7157,184.14,184.07,2.7167]
[1736454491714,39.79622176,184.15,184.03,3.1611]
[1736454492022,2.717,184.05,183.98,2.718]
[1736454493418,1.5791,184.07,183.93,1.5574]
[1736454493619,4.296,184.07,183.94,40.79503972]
[1736454493913,4.296,184.07,183.94,39.79622176]
[1736454494120,2.7169,184.06,183.99,2.7178]
[1736454494316,1.5791,184.07,183.99,2.7178]
[1736454494526,39.79622176,184.05,183.93,1.5574]
[1736454494723,39.79622176,183.96,183.81,39.79622176]
[1736454494921,39.79622176,183.93,183.82,4.17771926]
[1736454495117,39.79622176,183.93,183.82,1.5574]
[1736454495312,2.7198,183.86,183.78,2.721]
[1736454495515,39.79622176,183.9,183.73,1.6163]
[1736454495717,39.79622176,183.87,183.74,0.99992445]
[1736454495912,39.79622176,183.87,183.73,1.6163]
[1736454496223,39.79622176,183.9,183.73,1.6163]
[1736454496417,39.79622176,183.9,183.74,0.99995201]
[1736454496621,39.79622176,183.9,183.73,1.6163]
[1736454496822,39.79622176,183.93,183.75,39.79622176]
[1736454497218,2.7193,183.9,183.82,2.7204]
[1736454497619,6.76,183.92,183.78,39.79622176]
[1736454497820,2.719,183.92,183.84,2.7201]
[1736454499416,2.7191,183.91,183.84,2.7201]
[1736454500214,2.7188,183.94,183.81,39.79622176]
[1736454500419,1.5981,183.95,183.84,39.79622176]
[1736454500622,1.5981,183.95,183.87,2.7196]
[1736454500823,4.3166,183.95,183.84,39.79622176]
[1736454501018,2.7185,183.95,183.84,39.79622176]
[1736454501527,39.79622176,183.96,183.82,3.1311]
[1736454501726,2.7192,183.91,183.82,3.1311]
[1736454502120,39.79622176,183.96,183.82,3.1311]
[1736454502327,39.79622176,183.87,183.74,1.5775]
[1736454502516,39.79622176,183.84,183.71,1.6354]
[1736454502724,8.2665,183.86,183.66,2.7227]
[1736454502725,39.79622176,183.81,183.66,2.7227]
[1736454502930,39.79622176,183.78,183.65,1.6354]
[1736454503125,39.79622176,183.81,183.65,41.43162176]
[1736454503425,2.7212,183.77,183.65,41.43162176]
[1736454503824,39.79622176,183.81,183.65,41.43162176]
[1736454504030,39.79622176,183.81,183.66,1.00036535]
[1736454504228,39.79622176,183.81,183.65,41.43162176]
[1736454504428,2.7209,183.79,183.68,39.79622176]
[1736454504729,6.76,183.95,183.74,39.79622176]
[1736454505028,2.7191,183.91,183.82,2.7203]
[1736454505323,2.7191,183.91,183.8,39.79622176]
[1736454505525,2.7189,183.92,183.84,2.72]
[1736454505727,2.7189,183.92,183.8,39.79622176]
[1736454505928,1.5646,183.93,183.8,39.79622176]
[1736454506421,39.79622176,183.91,183.77,39.79622176]
[1736454506822,2.7195,183.88,183.77,39.79622176]
[1736454507124,39.79622176,183.89,183.76,1.5052]
[1736454507521,2.7201,183.85,183.76,1.5052]
[1736454508129,2.7203,183.83,183.76,4.2265]
[1736454508326,39.79622176,183.83,183.69,6.76]
[1736454508530,1.6254,183.82,183.69,6.76]
[1736454508732,4.7271,183.82,183.69,6.76]
[1736454508936,39.79622176,183.8,183.66,3.0378]
[1736454509120,39.79622176,183.77,183.66,3.0378]
[1736454510121,2.7218,183.73,183.66,5.7606]
[1736454510322,39.79622176,183.8,183.66,3.0378]
[1736454510720,2.7215,183.75,183.68,2.7223]
[1736454510922,39.79622176,183.8,183.56,1.5233]
[1736454511121,39.79622176,183.77,183.59,41.28722176]
[1736454511328,39.79622176,183.77,183.6,1.00042388]
[1736454511831,39.79622176,183.77,183.62,39.79622176]
[1736454512131,2.722,183.72,183.64,2.7229]
[1736454512327,39.79622176,183.74,183.59,41.28722176]
[1736454512530,39.79622176,183.71,183.6,1.00064829]
[1736454512727,2.7226,183.68,183.59,4.2147]
[1736454512927,1.5981,183.73,183.59,1.491]
[1736454513327,1.5981,183.73,183.59,4.2148]
[1736454513526,1.5981,183.73,183.59,1.491]
[1736454513732,2.7228,183.66,183.59,4.2148]
[1736454513929,1.5981,183.73,183.59,1.491]
[1736454514527,1.5981,183.73,183.6,2.7237]
[1736454515134,2.723,183.65,183.59,2.7238]
[1736454516228,41.31682176,183.71,183.59,2.7238]
[1736454516432,41.31682176,183.71,183.57,1.5702]
[1736454516831,39.79622176,183.68,183.54,1.6004]
[1736454517032,2.7237,183.61,183.54,4.3249]
[1736454517233,39.79622176,183.68,183.54,1.6004]
[1736454517429,2.724,183.59,183.54,1.6004]